bitfinex/quotes_ETHUSD_20250223
["timestamp","ask_amount","ask_price","bid_price","bid_amount"]
[1740305692810,0.7585,2815.2,2814.9,3.55251]
[1740305692982,5.24,2815.3,2814.9,3.55251]
[1740305693166,5.24,2815.3,2814.9,3.00251]
[1740305694007,5.24,2815.3,2814.7,3.55277]
[1740305694200,0.65485,2815.2,2814.7,3.55277]
[1740305695186,0.65485,2815.2,2814.9,0.159911]
[1740305695387,8.7921,2815.3,2814.9,0.159911]
[1740305695996,3.55222,2815.2,2814.9,0.159911]
[1740305696175,4.31089,2815.0,2814.9,0.159911]
[1740305696381,7.86089,2815.0,2814.9,0.159911]
[1740305696579,10.10895897,2815.0,2814.9,0.159911]
[1740305697728,15.34895897,2815.0,2814.9,0.159911]
[1740305699897,15.09195897,2815.0,2814.9,0.159911]
[1740305700102,15.34895897,2815.0,2814.9,0.159911]
[1740305700299,10.98956897,2815.0,2814.9,0.159911]
[1740305700503,14.54195897,2815.0,2814.9,0.159911]
[1740305701073,14.69099022,2815.0,2814.9,0.159911]
[1740305701378,15.24099022,2815.0,2814.9,0.159911]
[1740305703403,15.95576146,2815.0,2814.9,0.87503813]
[1740305703581,15.24099022,2815.0,2814.9,0.159911]
[1740305705629,15.24099022,2815.0,2814.9,1e-06]
[1740305706705,18.49848991,2815.0,2814.9,1e-06]
[1740305707005,18.98404579,2815.0,2814.9,1e-06]
[1740305708020,16.42484963,2815.0,2814.9,1.69e-06]
[1740305708215,3.55382,2813.9,2813.4,3.55441]
[1740305708416,3.55382,2813.9,2813.5,0.432231]
[1740305708634,0.1488559,2813.8,2813.4,3.55441]
[1740305708784,3.7027759,2813.8,2813.3,0.7679]
[1740305709637,3.55456,2813.3,2812.9,0.7679]
[1740305710220,3.55482,2813.1,2812.9,0.7679]
[1740305710587,0.14813597,2813.0,2812.9,0.7679]
[1740305711589,3.55444,2813.4,2812.9,0.7679]
[1740305711785,3.70267597,2813.3,2812.9,0.7679]
[1740305711987,0.14813597,2813.3,2812.9,0.7679]
[1740305713418,3.55431,2813.5,2812.9,0.7679]
[1740305713419,3.55436,2813.5,2812.9,4.32293]
[1740305713717,0.14813597,2813.2,2813.1,3.55479]
[1740305713920,3.0,2813.7,2813.3,3.55447]
[1740305714222,8.24,2813.7,2813.3,7.10893]
[1740305714412,8.24,2813.7,2812.9,1.46104597]
[1740305714733,5.24,2813.9,2813.5,4.32218]
[1740305714890,0.755,2814.3,2813.8,3.5538]
[1740305714891,5.24,2814.2,2813.8,3.5538]
[1740305715089,5.24,2814.2,2814.0,3.55364]
[1740305715300,5.24,2814.3,2814.0,3.55364]
[1740305715915,5.24,2814.3,2814.1,3.5535]
[1740305716124,0.14260762,2814.2,2814.1,3.5535]
[1740305716501,3.0,2814.3,2814.1,3.5535]
[1740305716717,5.24,2814.4,2814.3,3.55328]
[1740305716921,5.24,2814.4,2814.1,3.5535]
[1740305718425,3.55365,2814.1,2813.5,3.55419]
[1740305718622,3.55365,2814.1,2813.4,3.5544]
[1740305718827,3.55377,2814.0,2813.4,3.5544]
[1740305718996,4.30835,2814.3,2813.6,3.55408]
[1740305719195,3.5537,2814.0,2813.4,3.5544]
[1740305719523,4.88643497,2814.2,2813.4,3.5544]
[1740305719845,1.33298497,2814.2,2813.7,7.10804]
[1740305720046,1.33298497,2814.2,2813.8,3.55391]
[1740305720341,1.33298497,2814.2,2813.7,3.55402]
[1740305720342,1.33298497,2814.2,2813.9,3.55378]
[1740305720635,3.755,2814.3,2813.8,4.34049]
[1740305722040,3.55391,2813.8,2813.4,0.7866]
[1740305723248,3.55391,2813.8,2813.2,7.10918]
[1740305723412,3.0,2814.0,2813.3,3.55446]
[1740305723596,5.24,2814.2,2813.4,0.7866]
[1740305723806,3.55367,2814.0,2813.5,3.55421]
[1740305724420,3.55367,2814.0,2813.4,4.34096]
[1740305724940,3.55367,2814.0,2813.4,0.7866]
[1740305725246,3.55396,2813.8,2813.4,0.7866]
[1740305725451,3.55385,2813.9,2813.4,4.3409]
[1740305725605,4.89035197,2813.9,2813.4,4.3409]
[1740305726208,4.89035197,2813.9,2813.4,0.7866]
[1740305726906,1.33650197,2813.9,2813.4,0.7866]
[1740305727106,3.0,2814.1,2813.5,3.55424]
[1740305727409,6.55359,2814.1,2813.5,3.55424]
[1740305728455,6.55359,2814.1,2813.5,3.55421]
[1740305728637,6.55359,2814.1,2813.6,3.55414]
[1740305729338,6.55359,2814.1,2813.4,4.34093]
[1740305729530,4.733059,2814.0,2813.4,4.34093]
[1740305729732,4.733059,2814.0,2813.5,3.55427]
[1740305730554,1.179359,2814.0,2813.5,3.55427]
[1740305731057,0.14331059,2813.9,2813.5,3.55427]
[1740305731558,0.14331059,2813.9,2813.6,3.55412]
[1740305731730,0.14331059,2813.9,2813.8,3.55391]
[1740305731935,5.24,2814.2,2814.0,3.55365]
[1740305732652,5.24,2814.2,2814.1,3.55353]
[1740305732852,3.0,2814.3,2814.0,3.55365]
[1740305733063,3.0,2814.3,2814.0,3.55357]
[1740305733754,3.0,2814.3,2814.0,7.10716]
[1740305733947,3.0,2814.3,2814.1,3.55351]
[1740305734459,5.24,2814.4,2814.1,3.55351]
[1740305734855,9.672451,2814.4,2813.7,3.55397]
[1740305735022,3.55344,2814.2,2813.7,3.55397]
[1740305735731,3.55344,2814.2,2812.9,0.52009607]
[1740305735732,3.55372,2814.0,2813.3,3.55443]
[1740305735929,3.55398,2813.8,2813.4,0.7681]
[1740305736126,3.55398,2813.8,2813.2,4.32275]
[1740305736325,3.55398,2813.8,2813.3,3.55453]
[1740305737236,0.7644,2813.9,2813.3,3.55453]
[1740305737438,0.7644,2813.9,2813.5,3.55428]
[1740305738484,3.55373,2814.0,2813.5,3.55428]
[1740305738638,8.79346,2814.2,2813.6,0.7681]
[1740305738832,0.955786,2814.1,2813.6,0.7681]
[1740305739146,5.24,2814.2,2813.6,0.7681]
[1740305739547,5.24,2814.2,2813.7,3.55403]
[1740305739759,5.24,2814.2,2813.7,3.55396]
[1740305739954,5.24,2814.2,2813.7,7.10793]
[1740305740870,3.55342,2814.2,2813.6,4.32222]
[1740305741177,4.864714,2814.1,2813.6,0.7681]
[1740305741669,8.418364,2814.1,2813.5,3.55428]
[1740305742150,4.864714,2814.1,2813.5,3.55428]
[1740305742350,4.864714,2814.1,2813.5,3.55421]
[1740305742967,1.311114,2814.1,2813.4,0.8115]
[1740305743274,9.55774,2814.3,2813.8,3.55389]
[1740305743448,6.0044,2814.3,2813.8,3.55389]
[1740305743651,9.55768,2814.3,2813.8,3.55389]
[1740305746176,0.14344932,2814.2,2813.8,3.55389]
[1740305746472,9.55768,2814.3,2813.8,3.55389]
[1740305746671,0.14344932,2814.1,2813.8,3.55389]
[1740305746879,6.0044,2814.3,2813.8,3.55384]
[1740305747086,0.14344932,2814.0,2813.8,4.323]
[1740305747255,5.24,2814.3,2814.0,3.55365]
[1740305747570,9.0437,2814.5,2814.0,3.55365]
[1740305747753,1.259668,2814.4,2814.0,3.55365]
[1740305748867,3.0,2814.3,2813.8,3.5538]
[1740305749097,6.55328,2814.3,2813.8,3.5538]
[1740305751654,4.259668,2814.4,2813.9,3.55371]
[1740305751858,7.812918,2814.4,2813.8,3.5538]
[1740305752058,11.366178,2814.4,2813.8,3.5538]
[1740305752246,1.7409878,2814.3,2813.8,3.5538]
[1740305753181,5.2943378,2814.3,2813.8,3.5538]
[1740305753372,8.2943378,2814.3,2813.8,3.5538]
[1740305754581,4.7409878,2814.3,2813.9,3.55377]
[1740305755083,8.2942678,2814.3,2813.8,3.5538]
[1740305758986,4.7409878,2814.3,2813.9,3.55377]
[1740305760392,4.7409878,2814.3,2813.7,3.55402]
[1740305760599,0.7915,2814.1,2813.6,0.7692]
[1740305760772,3.55369,2814.0,2813.5,3.55419]
[1740305760971,0.14349558,2813.9,2813.5,3.55419]
[1740305761160,0.7915,2813.7,2813.2,0.7701]
[1740305761499,4.3456,2813.7,2813.2,0.7701]
[1740305761704,3.55429,2813.5,2813.2,0.7701]
[1740305761991,0.14333836,2813.6,2813.2,0.7701]
[1740305762294,0.14333836,2813.5,2813.2,0.7701]
[1740305762679,4.3456,2813.7,2813.2,0.7701]
[1740305762891,0.14333836,2813.4,2813.2,0.7701]
[1740305763199,5.659546,2813.7,2813.2,0.7701]
[1740305763492,9.213656,2813.7,2813.2,0.7701]
[1740305763699,0.14333836,2813.6,2813.2,0.7701]
[1740305764602,0.14333836,2813.6,2813.2,4.32472]
[1740305764783,0.14333836,2813.6,2813.2,0.7701]
[1740305765295,0.14333836,2813.6,2813.4,3.5543]
[1740305765595,5.24,2813.8,2813.3,3.66566153]
[1740305765793,5.84333,2813.8,2813.3,3.66567153]
[1740305766001,0.14333836,2813.7,2813.5,3.55426]
[1740305766299,5.84333,2813.8,2813.5,3.55426]
[1740305766467,0.14333836,2813.6,2813.5,3.55426]
[1740305766666,5.84333,2813.8,2813.5,3.55426]
[1740305766869,0.14333836,2813.6,2813.5,3.55426]
[1740305767173,5.24,2813.8,2813.6,3.55412]
[1740305767379,5.84333,2813.8,2813.4,3.55436]
[1740305767568,5.84333,2813.8,2813.3,3.55446]
[1740305767764,5.24,2813.8,2813.5,3.55427]
[1740305768366,5.24,2813.8,2813.3,3.55446]
[1740305768788,5.24,2813.8,2813.4,3.55438]
[1740305770606,13.14107,2813.9,2813.3,3.55447]
[1740305770769,9.58717,2813.9,2813.3,3.55447]
[1740305770970,10.901247,2813.9,2813.3,7.10892]
[1740305771166,10.901247,2813.9,2813.3,3.55445]
[1740305771404,10.901247,2813.9,2813.3,7.10892]
[1740305771889,10.901247,2813.9,2813.3,3.55445]
[1740305772313,10.901237,2813.9,2813.3,3.55445]
[1740305772498,14.455137,2813.9,2813.3,3.55445]
[1740305772792,10.901237,2813.9,2813.3,3.55445]
[1740305773006,10.901237,2813.9,2813.3,7.10891]
[1740305773209,1.0901237,2813.8,2813.3,3.55445]
[1740305773374,10.901237,2813.9,2813.3,3.55445]
[1740305773788,10.901237,2813.9,2813.4,3.55441]
[1740305774911,14.455117,2813.9,2813.4,3.55441]
[1740305775093,10.901237,2813.9,2813.4,3.55441]
[1740305776017,0.14314411,2813.8,2813.4,3.55441]
[1740305776615,0.14314411,2813.8,2813.3,0.11124376]
[1740305776822,3.69705411,2813.8,2813.3,3.66575376]
[1740305777321,0.7933,2813.7,2813.3,3.55451]
[1740305777884,0.14314411,2813.6,2813.0,7.10966]
[1740305778126,3.55451,2813.4,2812.8,4.34463]
[1740305778289,0.7933,2813.3,2812.8,4.34463]
[1740305778622,0.7933,2813.3,2812.9,0.11125663]
[1740305778829,0.14314411,2813.2,2812.9,0.11125663]
[1740305779165,0.7933,2813.3,2812.9,0.11125663]
[1740305779330,3.55487,2813.1,2812.9,0.11125663]
[1740305779690,0.14238561,2813.0,2812.9,0.11125663]
[1740305779905,0.14238561,2813.0,2812.6,0.11125663]
[1740305780421,0.14238561,2813.0,2812.6,3.66658663]
[1740305781429,0.8183,2812.9,2812.3,0.7702]
[1740305781601,0.8183,2812.5,2812.0,4.32632]
[1740305781805,0.14210803,2812.4,2812.0,4.32632]
[1740305782126,0.14210803,2812.4,2812.0,4.3263]
[1740305782439,5.83369183,2812.4,2811.8,0.7702]
[1740305782725,0.8183,2812.3,2812.0,3.55609]
[1740305783144,0.14121967,2812.2,2812.0,3.55609]
[1740305783440,0.8183,2812.3,2812.0,3.55609]
[1740305783636,0.14121967,2812.2,2812.0,3.55609]
[1740305783815,0.8183,2812.3,2812.1,3.55606]
[1740305784012,0.14121967,2812.2,2812.1,3.55606]
[1740305784206,0.8183,2812.3,2812.1,3.55606]
[1740305784538,0.14121967,2812.2,2812.1,3.55606]
[1740305784907,0.8183,2812.3,2812.1,3.55606]
[1740305785098,0.14121967,2812.2,2812.1,3.55606]
[1740305785514,0.8183,2812.3,2812.1,3.55606]
[1740305785713,0.14121967,2812.2,2812.1,3.55606]
[1740305786135,5.24,2812.4,2812.3,3.5558]
[1740305786336,5.24,2812.4,2812.3,4.326]
[1740305786541,0.70661539,2812.6,2812.5,3.55555]
[1740305787334,0.70661539,2812.6,2812.4,3.55568]
[1740305787537,0.70661539,2812.6,2812.5,3.55555]
[1740305788625,0.70661539,2812.6,2812.5,4.32575]
[1740305788826,6.0583,2813.4,2813.2,3.55459]
[1740305789029,6.66413,2813.4,2813.1,3.55476]
[1740305789304,0.7240618,2813.3,2813.1,3.55472]
[1740305789711,0.7240618,2813.3,2813.2,3.55466]
[1740305790836,0.86548508,2813.3,2813.2,3.55466]
[1740305791648,0.86548508,2813.3,2813.1,3.55472]
[1740305791846,3.86548508,2813.3,2812.2,5.39]
[1740305792145,3.55487,2813.1,2812.5,3.55548]
[1740305792550,0.14171013,2813.0,2812.5,3.55548]
[1740305792749,0.14171013,2813.0,2812.4,3.55561]
[1740305792935,0.14171013,2813.0,2812.4,3.66687956]
[1740305793126,0.718675,2812.8,2812.5,3.55555]
[1740305793327,0.718675,2812.8,2812.4,3.66686956]
[1740305793529,0.14171013,2812.7,2812.4,3.66686956]
[1740305793730,0.14171013,2812.7,2812.5,3.55552]
[1740305794046,0.718675,2812.8,2812.7,3.5553]
[1740305794635,0.718675,2812.8,2812.3,0.7702]
[1740305794836,0.718675,2812.8,2812.7,3.5553]
[1740305795055,0.718675,2812.8,2812.6,3.55542]
[1740305796353,0.718675,2812.8,2812.4,3.55558]
[1740305796555,0.718675,2812.8,2812.5,3.55547]
[1740305796719,0.718675,2812.8,2812.6,3.55542]
[1740305798357,0.718675,2812.8,2812.7,3.5553]
[1740305805865,5.24,2813.1,2812.8,3.5551]
[1740305806662,5.24,2813.1,2812.8,7.1102]
[1740305807165,5.24,2813.1,2812.8,3.5551]
[1740305809247,6.0583,2813.2,2812.8,3.5551]
[1740305809631,7.319572,2813.2,2812.8,3.5551]
[1740305810160,4.33371,2813.0,2812.5,0.11126819]
[1740305810361,0.7787,2813.0,2812.4,3.55559]
[1740305810567,0.7787,2813.0,2812.6,3.55541]
[1740305810865,0.7787,2813.0,2812.6,7.11077]
[1740305811163,0.7787,2813.0,2812.6,3.55536]
[1740305811360,0.7787,2813.0,2812.9,3.55504]
[1740305811546,0.7787,2813.0,2812.8,3.55516]
[1740305813284,5.24,2813.2,2812.5,0.7956]
[1740305813585,5.24,2813.2,2813.1,3.55479]
[1740305813785,6.0187,2813.5,2813.2,3.55457]
[1740305813935,6.0187,2813.5,2813.3,3.55447]
[1740305814287,6.0187,2813.5,2813.1,3.55471]
[1740305815183,6.0187,2813.5,2813.1,7.10942]
[1740305815345,6.0187,2813.5,2813.1,3.55471]
[1740305815667,6.0187,2813.5,2813.2,3.55465]
[1740305817953,6.975977,2813.5,2813.0,0.11125653]
[1740305818160,0.7877,2813.2,2813.0,0.11125653]
[1740305818759,0.7877,2813.2,2812.9,3.55504]
[1740305818935,0.7877,2813.2,2813.0,3.55481]
[1740305819135,0.7877,2813.2,2813.1,3.55479]
[1740305819434,0.7877,2813.2,2813.0,3.55481]
[1740305819853,3.0,2813.4,2813.0,3.55481]
[1740305819854,3.8323,2813.4,2813.0,3.55481]
[1740305820136,3.8323,2813.4,2813.1,3.55479]
[1740305820331,3.8323,2813.4,2813.0,3.55481]
[1740305820537,7.38672,2813.4,2812.8,7.11021]
[1740305820737,7.38672,2813.4,2812.9,3.55502]
[1740305820969,7.38672,2813.4,2813.0,3.55492]
[1740305820970,0.14195196,2813.3,2813.0,3.55492]
[1740305823646,1.86997786,2813.3,2812.8,3.5551]
[1740305823855,0.8323,2813.2,2812.8,3.55509]
[1740305824047,6.0723,2813.2,2813.0,3.55484]
[1740305824460,0.14195196,2813.1,2812.9,0.1112638]
[1740305824974,0.14195196,2813.1,2812.9,3.6662738]
[1740305825445,0.14195196,2813.1,2812.9,0.1112638]
[1740305825850,0.14195196,2813.1,2812.7,3.55522]
[1740305826473,3.55492,2813.0,2812.5,3.55547]
[1740305826771,0.8227,2812.9,2812.5,3.55547]
[1740305826974,0.96465196,2812.9,2812.5,3.55547]
[1740305827161,0.96465196,2812.9,2812.6,0.11127007]
[1740305828550,0.96465196,2812.9,2812.7,3.55527]
[1740305828750,0.96465196,2812.9,2812.7,7.11054]
[1740305829383,0.96465196,2812.9,2812.6,3.55538]
[1740305829588,0.96465196,2812.9,2812.5,3.55545]
[1740305829882,0.96465196,2812.9,2812.5,7.1109]
[1740305830286,0.96465196,2812.9,2812.5,3.55545]
[1740305830458,0.96465196,2812.9,2812.3,0.8061]
[1740305830790,0.96465196,2812.9,2812.5,3.55549]
[1740305831751,0.96465196,2812.9,2812.6,3.5554]
[1740305833066,0.96465196,2812.9,2812.7,3.55523]
[1740305833781,0.14195196,2812.9,2812.7,3.55523]
[1740305833988,0.14195196,2812.9,2812.8,3.55517]
[1740305834211,0.8027,2813.1,2812.8,3.55517]
[1740305834482,0.14172985,2812.9,2812.8,3.55517]
[1740305834653,0.8027,2813.1,2812.9,3.55503]
[1740305835155,5.24,2813.2,2813.1,3.55479]
[1740305835367,5.24,2813.4,2813.3,3.55454]
[1740305835574,5.24,2813.4,2813.1,3.55472]
[1740305836093,0.14149851,2813.3,2813.1,7.10939]
[1740305836479,0.14149851,2813.3,2813.1,3.55473]
[1740305838366,0.14149851,2813.3,2813.2,3.55467]
[1740305841801,0.14149851,2813.3,2813.1,7.1095]
[1740305841980,0.14149851,2813.3,2813.2,3.55467]
[1740305847308,0.7589,2813.2,2812.9,3.55493]
[1740305847483,0.7589,2813.2,2812.9,7.10991]
[1740305847687,0.14206298,2813.1,2813.0,3.5549]
[1740305848406,5.9989,2813.4,2813.2,3.55465]
[1740305848904,5.9989,2813.4,2813.0,3.5549]
[1740305849915,5.9989,2813.4,2813.2,3.55466]
[1740305850102,5.9989,2813.4,2813.1,3.55477]
[1740305850303,5.9989,2813.4,2813.0,3.5549]
[1740305851110,0.14206298,2813.3,2813.1,3.55475]
[1740305854722,0.14206298,2813.3,2813.0,3.5549]
[1740305854892,0.14206298,2813.3,2813.2,3.55467]
[1740305855618,0.14206298,2813.3,2813.0,3.5549]
[1740305855823,0.14206298,2813.3,2813.0,3.55485]
[1740305856527,0.14206298,2813.3,2813.1,3.55473]
[1740305857891,0.14206298,2813.3,2813.1,3.55471]
[1740305858823,0.14206298,2813.3,2813.2,3.55467]
[1740305859119,0.14206298,2813.3,2813.2,4.31487]
[1740305859902,5.24,2814.2,2813.9,3.55378]
[1740305860104,5.24,2814.3,2813.9,3.55378]
[1740305860298,0.13697185,2814.1,2813.9,3.55378]
[1740305860521,5.24,2814.3,2813.9,3.55378]
[1740305860719,0.13697185,2814.0,2813.9,3.55378]
[1740305860926,5.24,2814.3,2813.9,3.55378]
[1740305861122,0.13697185,2814.0,2813.9,3.55378]
[1740305861328,5.24,2814.3,2813.9,3.55378]
[1740305861793,0.13697185,2814.2,2813.9,3.55378]
[1740305861993,5.24,2814.3,2813.9,3.55378]
[1740305862196,0.13697185,2814.1,2813.9,3.55378]
[1740305862527,0.13697185,2814.1,2813.7,4.34656]
[1740305862828,0.13697185,2814.1,2813.2,3.55466]
[1740305862829,0.88787185,2814.0,2813.5,3.55419]
[1740305863226,0.88787185,2814.0,2813.7,3.55403]
[1740305864522,0.88787185,2814.0,2813.6,0.11122944]
[1740305865097,0.88787185,2814.0,2813.6,3.66537944]
[1740305865300,0.88787185,2814.0,2813.6,0.11122944]
[1740305865527,6.12787185,2814.0,2813.6,0.11122944]
[1740305865732,6.12787185,2814.0,2813.5,3.55419]
[1740305866434,6.12787185,2814.0,2813.5,7.10837]
[1740305866595,9.68162185,2814.0,2813.4,0.7926]
[1740305866801,10.64978404,2814.0,2813.5,3.55428]
[1740305868197,10.64978404,2814.0,2813.5,3.66551249]
[1740305870202,9.68162185,2814.0,2813.5,3.66551249]
[1740305870614,9.68162185,2814.0,2813.5,7.21972249]
[1740305871231,9.68162185,2814.0,2813.5,3.66544249]
[1740305871608,3.5538,2813.9,2813.5,0.11123249]
[1740305871828,5.01486086,2813.9,2813.5,0.11123249]
[1740305872337,5.01486086,2813.9,2813.4,4.347]
[1740305872838,5.01486086,2813.9,2813.4,0.7926]
[1740305873331,8.56872086,2813.9,2813.4,0.7926]
[1740305873846,3.55429,2813.5,2813.0,0.7687]
[1740305874026,8.79429,2813.5,2813.0,0.7687]
[1740305874239,0.13751867,2813.4,2812.9,3.55495]
[1740305874741,0.13751867,2813.4,2813.1,3.55476]
[1740305876317,0.13751867,2813.4,2813.2,3.55465]
[1740305876518,0.13751867,2813.4,2813.3,3.55454]
[1740305878546,0.13751867,2813.4,2813.3,4.342329]
[1740305879445,0.13751867,2813.4,2813.3,4.45356181]
[1740305880624,0.13751867,2813.4,2813.3,5.21396181]
[1740305881028,0.8653377,2813.4,2813.3,5.21396181]
[1740305881409,0.72781903,2813.4,2813.3,5.21396181]
[1740305881643,5.24,2813.5,2813.3,5.21396181]
[1740305881848,5.24,2813.5,2813.4,4.43127118]
[1740305882449,5.37367745,2813.5,2813.4,4.54250399]
[1740305883417,0.13367745,2813.5,2813.4,4.54250399]
[1740305883731,5.24,2814.0,2813.6,3.55409]
[1740305883931,6.0635,2814.1,2813.6,3.55409]
[1740305884746,6.0635,2814.1,2813.6,3.55408]
[1740305885456,7.380528,2814.1,2813.6,3.55408]
[1740305887754,7.380528,2814.1,2813.7,3.55401]
[1740305887917,7.380528,2814.1,2813.8,3.55389]
[1740305889437,7.380528,2814.1,2813.7,0.11122737]
[1740305890138,0.8212,2813.8,2813.7,0.11122737]
[1740305890561,0.8212,2813.8,2813.6,3.55415]
[1740305890780,6.0612,2814.1,2813.6,3.55415]
[1740305890963,0.60612,2814.0,2813.6,3.55415]
[1740305892673,6.0612,2814.1,2813.8,3.55389]
[1740305893367,6.0612,2814.1,2813.4,0.7783]
[1740305893665,6.0612,2814.1,2813.9,3.5537]
[1740305896089,0.13424363,2814.0,2813.9,3.5537]
[1740305896245,0.13424363,2814.0,2813.8,3.55388]
[1740305903785,0.13424363,2814.0,2813.7,3.55399]
[1740305904687,0.13424363,2814.0,2813.8,3.55391]
[1740305905482,0.13424363,2814.0,2813.9,3.55378]
[1740305909567,0.13424363,2814.0,2813.9,3.66500586]
[1740305911021,0.13424363,2814.0,2813.9,4.46511645]
[1740305911160,0.84141068,2814.0,2813.9,5.18737505]
[1740305913201,0.84141068,2814.0,2813.9,4.63737505]
[1740305913499,0.84141068,2814.0,2813.9,5.41957505]
[1740305913862,0.70716705,2814.0,2813.9,5.41957505]
[1740305914165,1.57887028,2814.6,2814.5,3.55302]
[1740305914364,1.71329949,2814.6,2814.5,3.55302]
[1740305915903,1.71329949,2814.6,2814.3,3.55319]
[1740305916102,1.71329949,2814.6,2814.4,3.55304]
[1740305916706,1.71329949,2814.6,2814.4,3.55305]
[1740305917703,2.79094944,2814.6,2814.0,0.7822]
[1740305917897,0.8232,2814.1,2813.5,9.7264]
[1740305918097,0.8232,2814.1,2813.9,3.55369]
[1740305918299,6.81887028,2814.3,2813.2,5.13350028]
[1740305918300,6.81887028,2814.3,2814.1,3.55349]
[1740305918467,5.24,2814.3,2814.1,3.55345]
[1740305918671,5.24,2814.3,2814.1,7.1069]
[1740305918865,5.24,2814.3,2814.2,3.5534]
[1740305919089,5.24,2814.3,2814.0,0.7822]
[1740305919414,7.58307731,2814.3,2813.9,3.55371]
[1740305919711,7.58307731,2814.3,2814.0,3.55363]
[1740305920007,6.81887028,2814.3,2814.0,3.55363]
[1740305921117,1.57887028,2814.1,2813.9,3.5537]
[1740305921524,0.8312,2814.0,2813.7,3.55395]
[1740305921843,1.57887028,2813.9,2813.6,3.55408]
[1740305922704,1.57887028,2813.9,2813.5,3.55419]
[1740305923020,1.57887028,2813.9,2813.7,3.55402]
[1740305923308,1.57887028,2813.9,2813.7,3.66524833]
[1740305924609,1.57887028,2813.9,2813.8,0.11122833]
[1740305924809,5.24,2814.0,2813.8,3.66512833]
[1740305925012,6.81887028,2814.1,2813.8,3.66512833]
[1740305925489,6.81887028,2814.1,2813.8,4.47812833]
[1740305925694,6.81887028,2814.1,2813.8,4.3669]
[1740305926094,0.13467976,2814.0,2813.8,4.3669]
[1740305926300,0.13467976,2814.0,2813.9,3.55378]
[1740305926816,0.13467976,2814.0,2813.9,3.66500113]
[1740305927306,0.13467976,2814.0,2813.9,0.11122113]
[1740305928218,0.13467976,2814.0,2813.9,3.66500113]
[1740305928788,0.13467976,2814.0,2813.9,0.11122113]
[1740305929812,0.13467976,2814.0,2813.9,3.66500113]
[1740305935926,0.85322899,2814.0,2813.9,4.36141158]
[1740305953134,0.85322899,2814.0,2813.9,0.80763158]
[1740305953458,2.28775189,2814.0,2813.9,0.55763158]
[1740305953653,1.56920266,2814.0,2813.3,0.8282]
[1740305953860,0.95987976,2814.0,2813.7,3.55402]
[1740305954655,0.13467976,2814.0,2813.8,3.55388]
[1740305954871,0.13467976,2814.0,2813.8,0.8282]
[1740305955083,0.13467976,2814.0,2813.9,3.55378]
[1740305955371,0.13467976,2814.0,2813.9,3.30378]
[1740305955740,0.13467976,2814.0,2813.9,4.072368]
[1740305955941,0.13467976,2814.0,2813.9,4.900568]
[1740305956135,5.24,2814.5,2814.4,3.55315]
[1740305956340,0.55,2814.9,2814.8,3.55265]
[1740305958037,4.37796,2814.8,2814.1,3.55351]
[1740305958372,1.57887028,2814.6,2814.1,3.55351]
[1740305958781,1.57887028,2814.6,2814.2,3.5533]
[1740305959096,1.57887028,2814.6,2814.1,3.55351]
[1740305959235,1.57887028,2814.6,2814.3,3.55326]
[1740305960464,1.57887028,2814.6,2814.1,3.55351]
[1740305960666,6.08281031,2814.6,2814.0,3.8282]
[1740305960887,0.8043,2814.5,2814.0,3.8282]
[1740305961098,0.8043,2814.5,2814.0,0.8282]
[1740305962503,0.55,2814.5,2814.1,3.55343]
[1740305962672,0.55,2814.5,2814.2,3.55339]
[1740305963920,0.55,2814.5,2814.1,7.10685]
[1740305964207,0.55,2814.5,2814.1,7.10687]
[1740305965742,0.55,2814.5,2814.2,3.6645386]
[1740305966810,0.55,2814.5,2814.3,3.55326]
[1740305967182,0.55,2814.5,2814.2,3.6645286]
[1740305969903,0.55,2814.5,2814.2,3.55332]
[1740305970996,0.13524573,2814.4,2814.2,3.55332]
[1740305972472,0.13524573,2814.4,2814.0,0.8282]
[1740305973410,3.68842573,2814.4,2814.0,0.8282]
[1740305973717,1.3668,2814.3,2813.7,0.7681]
[1740305973869,4.9201,2814.3,2814.1,0.11120917]
[1740305974066,0.13527355,2814.2,2814.1,0.11120917]
[1740305974561,1.3668,2814.3,2814.1,0.11120917]
[1740305974715,0.13527355,2814.2,2814.1,0.11120917]
[1740305975099,1.3668,2814.3,2814.1,0.11120917]
[1740305975303,0.13527355,2814.2,2813.9,0.11120917]
[1740305975506,0.13527355,2814.2,2814.0,3.55357]
[1740305975705,1.3668,2814.3,2814.0,3.55357]
[1740305975902,0.13527355,2814.1,2813.9,0.11120917]
[1740305976078,1.3668,2814.3,2813.9,0.11120917]
[1740305976281,0.13527355,2814.0,2813.8,7.10764]
[1740305976495,1.3668,2814.3,2813.8,7.10764]
[1740305976697,0.13527355,2813.9,2813.8,3.55379]
[1740305976879,1.3668,2814.3,2813.8,7.10761]
[1740305977079,0.13527355,2813.9,2813.8,7.10761]
[1740305977297,1.3668,2814.3,2813.8,3.55379]
[1740305977515,0.13527355,2813.9,2813.8,3.55379]
[1740305977690,1.3668,2814.3,2813.9,3.55373]
[1740305977909,0.13527355,2813.9,2813.8,3.66500698]
[1740305978223,0.55,2814.4,2814.2,3.55334]
[1740305978641,0.55,2814.4,2814.1,3.55344]
[1740305978963,0.55,2814.4,2814.0,0.7681]
[1740305978964,6.0568,2814.7,2814.4,3.55309]
[1740305979128,0.55,2814.6,2814.3,3.55328]
[1740305980061,0.55,2814.6,2814.3,7.10647]
[1740305980263,0.55,2814.6,2814.4,3.55314]
[1740305980415,0.55,2814.6,2814.5,3.55302]
[1740305980615,5.24,2814.7,2814.5,3.55302]
[1740305981622,5.24,2814.7,2814.5,3.55293]
[1740305981860,5.24,2814.7,2814.6,3.5529]
[1740305982558,0.55,2814.9,2814.4,0.7937]
[1740305982715,0.55,2814.9,2814.8,3.55265]
[1740305984816,0.55,2814.9,2814.8,4.36825]
[1740305985825,0.68531996,2814.9,2814.8,4.36825]